fUSD/lending_fUSD_20240205
["ID","MTS","AMOUNT","RATE_DAILY","PERIOD"]
[313302690,1707127842580,-500.0,0.00041095,2]
[313302692,1707127842589,-500.0,0.00041095,2]
[313302693,1707127842599,-500.0,0.00041095,2]
[313302694,1707127842608,-500.0,0.00041095,2]
[313302695,1707127842617,-500.0,0.00041095,2]
[313302696,1707127842627,-500.0,0.00041095,2]
[313302697,1707127842636,-500.0,0.00041095,2]
[313302698,1707127842646,-500.0,0.00041095,2]
[313302699,1707127842656,-500.0,0.00041095,2]
[313302700,1707127842665,-500.0,0.00041095,2]
[313302701,1707127842675,-585.18732449,0.00041095,2]
[313302702,1707127842684,-500.0,0.00041095,2]
[313302703,1707127842694,-500.0,0.00041095,2]
[313302704,1707127842703,-500.0,0.00041095,2]
[313302705,1707127842712,-500.0,0.00041095,2]
[313302706,1707127842722,-500.0,0.00041095,2]
[313302707,1707127842731,-500.0,0.00041095,2]
[313302708,1707127842740,-913.14,0.00041095,2]
[313302709,1707127842751,-524.99477931,0.00041095,2]
[313302710,1707127842761,-500.0,0.00041095,2]
[313302711,1707127842770,-500.0,0.00041095,2]
[313302713,1707127842779,-622.14,0.00041095,2]
[313302714,1707127842788,-500.0,0.00041095,2]
[313302715,1707127842797,-500.0,0.00041095,2]
[313302716,1707127842807,-500.0,0.00041095,2]
[313302717,1707127842816,-500.0,0.00041095,2]
[313302718,1707127842825,-500.0,0.00041095,2]
[313302719,1707127842834,-500.0,0.00041095,2]
[313302720,1707127842843,-547.84070801,0.00041095,2]
[313302721,1707127842852,-500.0,0.00041095,2]
[313302722,1707127842861,-500.0,0.00041095,2]
[313302723,1707127842871,-500.0,0.00041095,2]
[313302724,1707127842880,-500.0,0.00041095,2]
[313302725,1707127842889,-500.0,0.00041095,2]
[313302726,1707127842899,-222.73096062,0.00041095,2]
[313302727,1707127842908,-500.0,0.00041095,2]
[313302728,1707127842917,-500.0,0.00041095,2]
[313302729,1707127842926,-563.13,0.00041095,2]
[313302730,1707127842935,-177.52975409,0.00041095,2]
[313302731,1707127842945,-500.0,0.00041095,2]
[313302732,1707127842954,-546.05540181,0.00041095,2]
[313302733,1707127842963,-500.0,0.00041095,2]
[313302734,1707127842973,-869.02,0.00041095,2]
[313302735,1707127842983,-500.0,0.00041095,2]
[313302736,1707127842993,-500.0,0.00041095,2]
[313302737,1707127843003,-500.0,0.00041095,2]
[313302738,1707127843013,-500.0,0.00041095,2]
[313302739,1707127843022,-1336.9,0.00041095,2]
[313302740,1707127843031,-500.0,0.00041095,2]
[313302741,1707127843041,-1664.03,0.00041095,2]
[313302742,1707127843051,-500.0,0.00041095,2]
[313302743,1707127843060,-500.0,0.00041095,2]
[313302744,1707127843070,-500.0,0.00041095,2]
[313302745,1707127843079,-474.59175271,0.00041095,2]
[313302746,1707127843088,-500.0,0.00041095,2]
[313302747,1707127843098,-500.0,0.00041095,2]
[313302748,1707127843107,-542.90705715,0.00041095,2]
[313302749,1707127843117,-500.0,0.00041095,2]
[313302750,1707127843127,-911.82,0.00041095,2]
[313302751,1707127843136,-522.17,0.00041095,2]
[313302752,1707127843146,-500.0,0.00041095,2]
[313302753,1707127843155,-876.24,0.00041095,2]
[313302754,1707127843171,-534.5749317,0.00041095,2]
[313302755,1707127843189,-1208.95,0.00041095,2]
[313302756,1707127843200,-500.0,0.00041095,2]
[313302757,1707127843210,-500.0,0.00041095,2]
[313302758,1707127843220,-500.0,0.00041095,2]
[313302759,1707127843230,-500.0,0.00041095,2]
[313302760,1707127843240,-500.0,0.00041095,2]
[313302761,1707127843250,-991.16,0.00041095,2]
[313302762,1707127843262,-2208.28,0.00041095,5]
[313302769,1707127843415,-541.40810614,0.00041095,2]
[313302770,1707127843425,-500.0,0.00041095,2]
[313302771,1707127843435,-500.0,0.00041095,2]
[313302772,1707127843445,-500.0,0.00041095,2]
[313302773,1707127843454,-500.0,0.00041095,2]
[313302774,1707127843463,-4873.25,0.00041095,2]
[313302775,1707127843472,-500.0,0.00041095,2]
[313302776,1707127843482,-500.0,0.00041095,2]
[313302777,1707127843491,-500.0,0.00041095,2]
[313302778,1707127843500,-1507.15,0.00041095,2]
[313302779,1707127843509,-500.0,0.00041095,2]
[313302780,1707127843518,-544.76081722,0.00041095,2]
[313302781,1707127843527,-500.0,0.00041095,2]
[313302782,1707127843536,-500.0,0.00041095,2]
[313302783,1707127843545,-266.08293692,0.00041095,2]
[313302784,1707127843554,-500.0,0.00041095,2]
[313302785,1707127843563,-392.26800955,0.00041095,2]
[313302786,1707127843572,-724.44,0.00041095,2]
[313302787,1707127843581,-594.7026842,0.00041095,2]
[313302788,1707127843590,-890.52,0.00041095,2]
[313302789,1707127843599,-500.0,0.00041095,2]
[313302790,1707127843608,-829.46,0.00041095,2]
[313302791,1707127843617,-611.71,0.00041095,2]
[313302792,1707127843626,-500.0,0.00041095,2]
[313302793,1707127843634,-500.0,0.00041095,2]
[313302794,1707127843643,-500.0,0.00041095,2]
[313302795,1707127843652,-500.0,0.00041095,2]
[313302796,1707127843662,-556.31,0.00041095,2]
[313302797,1707127843671,-500.0,0.00041095,2]
[313302798,1707127843679,-687.93,0.00041095,2]
[313302799,1707127843688,-832.51,0.00041095,2]
[313302800,1707127843697,-500.0,0.00041095,2]
[313302801,1707127843706,-500.0,0.00041095,2]
[313302802,1707127843714,-425.08908744,0.00041095,2]
[313302803,1707127843723,-871.11,0.00041095,2]
[313302804,1707127843732,-500.0,0.00041095,2]
[313302805,1707127843741,-500.0,0.00041095,2]
[313302806,1707127843750,-1243.36,0.00041095,2]
[313302807,1707127843760,-500.0,0.00041095,2]
[313302808,1707127843769,-639.69379454,0.00041095,2]
[313302809,1707127843778,-500.0,0.00041095,2]
[313302810,1707127843790,-220.56935443,0.00041095,2]
[313302811,1707127843800,-500.0,0.00041095,2]
[313302812,1707127843809,-500.0,0.00041095,2]
[313302813,1707127843819,-3012.41,0.00041095,2]
[313302814,1707127843828,-549.64293694,0.00041095,2]
[313302815,1707127843838,-500.0,0.00041095,2]
[313302816,1707127843847,-500.0,0.00041095,2]
[313302817,1707127843858,-590.23,0.00041095,2]
[313302818,1707127843867,-500.0,0.00041095,2]
[313302819,1707127843877,-285.35240693,0.00041095,2]
[313302820,1707127843886,-169.81175688,0.00041095,2]
[313302821,1707127843896,-500.0,0.00041095,2]
[313302822,1707127843905,-500.0,0.00041095,2]
[313302823,1707127843915,-500.0,0.00041095,2]
[313302824,1707127843924,-558.83130055,0.00041095,2]
[313302825,1707127843933,-500.0,0.00041095,2]
[313302826,1707127843943,-500.0,0.00041095,2]
[313302827,1707127843952,-500.0,0.00041095,2]
[313302828,1707127843962,-500.0,0.00041095,2]
[313302829,1707127843971,-500.0,0.00041095,2]
[313302830,1707127843981,-567.22331235,0.00041095,2]
[313302831,1707127843991,-3014.28,0.00041095,2]
[313302832,1707127844001,-500.0,0.00041095,2]
[313302833,1707127844011,-500.0,0.00041095,2]
[313302834,1707127844021,-500.0,0.00041095,2]
[313302835,1707127844030,-621.05,0.00041095,2]
[313302836,1707127844040,-442.81558122,0.00041095,2]
[313302837,1707127844049,-589.53,0.00041095,2]
[313302838,1707127844058,-500.0,0.00041095,2]
[313302839,1707127844068,-500.0,0.00041095,2]
[313302840,1707127844078,-500.0,0.00041095,2]
[313302841,1707127844087,-500.0,0.00041095,2]
[313302842,1707127844096,-500.0,0.00041095,2]
[313302843,1707127844106,-500.0,0.00041095,2]
[313302844,1707127844115,-830.56,0.00041095,2]
[313302845,1707127844124,-1902.12,0.00041095,2]
[313302846,1707127844134,-500.0,0.00041095,2]
[313302847,1707127844144,-1035.44,0.00041095,2]
[313302848,1707127844153,-2847.02,0.00041095,2]
[313302849,1707127844163,-807.95,0.00041095,2]
[313302850,1707127844175,-500.0,0.00041095,2]
[313302851,1707127844186,-500.0,0.00041095,2]
[313302852,1707127844195,-600.37814363,0.00041095,2]
[313302853,1707127844205,-500.0,0.00041095,2]
[313302854,1707127844214,-597.97227697,0.00041095,2]
[313302855,1707127844223,-593.17244866,0.00041095,2]
[313302856,1707127844233,-500.0,0.00041095,2]
[313302857,1707127844242,-500.0,0.00041095,2]
[313302858,1707127844252,-500.0,0.00041095,2]
[313302859,1707127844262,-500.0,0.00041095,2]
[313302860,1707127844271,-500.0,0.00041095,2]
[313302861,1707127844281,-557.38840272,0.00041095,2]
[313302862,1707127844290,-500.0,0.00041095,2]
[313302863,1707127844299,-500.0,0.00041095,2]
[313302864,1707127844309,-536.86,0.00041095,2]
[313302865,1707127844318,-2651.98,0.00041095,2]
[313302866,1707127844327,-500.0,0.00041095,2]
[313302867,1707127844336,-500.0,0.00041095,2]
[313302868,1707127844346,-500.0,0.00041095,2]
[313302869,1707127844355,-500.0,0.00041095,2]
[313302870,1707127844364,-500.0,0.00041095,2]
[313302871,1707127844374,-500.0,0.00041095,2]
[313302872,1707127844383,-1214.43,0.00041095,2]
[313302873,1707127844392,-500.0,0.00041095,2]
[313302874,1707127844401,-500.0,0.00041095,2]
[313302875,1707127844410,-753.45,0.00041095,2]
[313302876,1707127844420,-500.0,0.00041095,2]
[313302877,1707127844429,-616.48781447,0.00041095,2]
[313302878,1707127844438,-527.47196868,0.00041095,2]
[313302879,1707127844447,-500.0,0.00041095,2]
[313302880,1707127844457,-500.0,0.00041095,2]
[313302881,1707127844469,-500.0,0.00041095,2]
[313302882,1707127844479,-500.0,0.00041095,2]
[313302883,1707127844487,-622.87,0.00041095,2]
[313302884,1707127844497,-500.0,0.00041095,2]
[313302885,1707127844506,-1152.32,0.00041095,2]
[313302886,1707127844515,-500.0,0.00041095,2]
[313302887,1707127844524,-500.0,0.00041095,2]
[313302888,1707127844533,-500.0,0.00041095,2]
[313302889,1707127844543,-500.0,0.00041095,2]
[313302890,1707127844552,-500.0,0.00041095,2]
[313302891,1707127844561,-500.0,0.00041095,2]
[313302892,1707127844571,-1196.94,0.00041095,2]
[313302893,1707127844580,-500.0,0.00041095,2]
[313302894,1707127844589,-580.39316402,0.00041095,2]
[313302895,1707127844598,-500.0,0.00041095,2]
[313302896,1707127844607,-500.0,0.00041095,2]
[313302897,1707127844616,-500.0,0.00041095,2]
[313302898,1707127844625,-500.0,0.00041095,2]
[313302899,1707127844634,-500.0,0.00041095,2]
[313302900,1707127844643,-530.27,0.00041095,2]
[313302901,1707127844652,-525.01,0.00041095,2]
[313302902,1707127844662,-285.04,0.00041095,2]
[313302903,1707127844672,-500.0,0.00041095,2]
[313302904,1707127844681,-500.0,0.00041095,2]
[313302905,1707127844690,-1136.73,0.00041095,2]
[313302906,1707127844699,-500.0,0.00041095,2]
[313302907,1707127844708,-500.0,0.00041095,2]
[313302908,1707127844717,-500.0,0.00041095,2]
[313302909,1707127844727,-500.0,0.00041095,2]
[313302910,1707127844736,-500.0,0.00041095,2]
[313302911,1707127844745,-500.0,0.00041095,2]
[313302912,1707127844754,-768.14,0.00041095,2]
[313302913,1707127844764,-500.0,0.00041095,2]
[313302914,1707127844773,-591.84035891,0.00041095,2]
[313302915,1707127844782,-500.0,0.00041095,2]
[313302916,1707127844791,-500.0,0.00041095,2]
[313302917,1707127844800,-717.13,0.00041095,2]
[313302918,1707127844810,-500.0,0.00041095,2]
[313302919,1707127844819,-1043.92,0.00041095,2]
[313302920,1707127844828,-500.0,0.00041095,2]
[313302921,1707127844838,-500.0,0.00041095,2]
[313302922,1707127844847,-503.82471758,0.00041095,2]
[313302923,1707127844947,-500.0,0.00041095,2]
[313302924,1707127844965,-519.3622676,0.00041095,2]
[313302925,1707127844974,-500.0,0.00041095,2]
[313302926,1707127844983,-500.0,0.00041095,2]
[313302927,1707127844993,-500.0,0.00041095,2]
[313302928,1707127845002,-500.0,0.00041095,2]
[313302929,1707127845011,-500.0,0.00041095,2]
[313302930,1707127845020,-500.0,0.00041095,2]
[313302931,1707127845029,-500.0,0.00041095,2]
[313302932,1707127845039,-525.21653318,0.00041095,2]
[313302933,1707127845048,-567.71,0.00041095,2]
[313302934,1707127845057,-520.87567837,0.00041095,2]
[313302935,1707127845067,-2573.61,0.00041095,2]
[313302936,1707127845076,-500.0,0.00041095,2]
[313302937,1707127845085,-732.21,0.00041095,2]
[313302938,1707127845094,-532.01966769,0.00041095,2]
[313302939,1707127845107,-2569.02,0.00041095,2]
[313302940,1707127845116,-500.0,0.00041095,2]
[313302941,1707127845125,-585.77,0.00041095,2]
[313302942,1707127845134,-546.46052764,0.00041095,2]
[313302943,1707127845143,-500.0,0.00041095,2]
[313302944,1707127845153,-507.62475803,0.00041095,2]
[313302945,1707127845162,-500.0,0.00041095,2]
[313302946,1707127845172,-500.0,0.00041095,2]
[313302947,1707127845185,-500.0,0.00041095,2]
[313302948,1707127845194,-601.60158916,0.00041095,2]
[313302949,1707127845204,-500.0,0.00041095,2]
[313302950,1707127845213,-520.06685237,0.00041095,2]
[313302951,1707127845223,-500.0,0.00041095,2]
[313302952,1707127845232,-500.0,0.00041095,2]
[313302953,1707127845242,-500.0,0.00041095,2]
[313302954,1707127845252,-500.0,0.00041095,2]
[313302955,1707127845262,-500.0,0.00041095,2]
[313302956,1707127845271,-500.0,0.00041095,2]
[313302957,1707127845281,-500.0,0.00041095,2]
[313302958,1707127845290,-500.0,0.00041095,2]
[313302959,1707127845299,-511.96603893,0.00041095,2]
[313302960,1707127845309,-500.0,0.00041095,2]
[313302961,1707127845319,-315.87482908,0.00041095,2]
[313302962,1707127845328,-500.0,0.00041095,2]
[313302963,1707127845337,-520.79,0.00041095,2]
[313302964,1707127845348,-500.0,0.00041095,2]
[313302965,1707127845358,-526.78320603,0.00041095,2]
[313302966,1707127845367,-500.0,0.00041095,2]
[313302967,1707127845376,-1414.46,0.00041095,2]
[313302968,1707127845386,-500.0,0.00041095,2]
[313302969,1707127845395,-655.39,0.00041095,2]
[313302970,1707127845405,-842.26,0.00041095,2]
[313302971,1707127845414,-510.16268105,0.00041095,2]
[313302972,1707127845423,-500.0,0.00041095,2]
[313302973,1707127845433,-500.0,0.00041095,2]
[313302974,1707127845442,-500.0,0.00041095,2]
[313302975,1707127845452,-664.86,0.00041095,2]
[313302976,1707127845462,-500.0,0.00041095,2]
[313302977,1707127845472,-500.0,0.00041095,2]
[313302978,1707127845482,-513.60319078,0.00041095,2]
[313302979,1707127845491,-500.0,0.00041095,2]
[313302980,1707127845501,-301.01537884,0.00041095,2]
[313302981,1707127845511,-1278.72,0.00041095,2]
[313302982,1707127845520,-500.0,0.00041095,2]
[313302983,1707127845529,-500.0,0.00041095,2]
[313302984,1707127845539,-637.80896957,0.00041095,2]
[313302985,1707127845548,-606.87,0.00041095,2]
[313302986,1707127845558,-500.0,0.00041095,2]
[313302987,1707127845569,-850.58,0.00041095,2]
[313302988,1707127845578,-776.81,0.00041095,2]
[313302989,1707127845587,-500.0,0.00041095,2]
[313302990,1707127845596,-557.79941172,0.00041095,2]
[313302991,1707127845605,-500.0,0.00041095,2]
[313302992,1707127845614,-198.95236793,0.00041095,2]
[313302993,1707127845623,-500.0,0.00041095,2]
[313302994,1707127845633,-500.0,0.00041095,2]
[313302995,1707127845642,-685.65,0.00041095,2]
[313302996,1707127845651,-500.0,0.00041095,2]
[313302997,1707127845660,-524.3,0.00041095,2]
[313302998,1707127845670,-500.0,0.00041095,2]
[313302999,1707127845679,-500.0,0.00041095,2]
[313303001,1707127845689,-500.0,0.00041095,2]
[313303003,1707127845698,-500.0,0.00041095,2]
[313303004,1707127845707,-1060.32,0.00041095,2]
[313303005,1707127845716,-1737.35,0.00041095,2]
[313303006,1707127845726,-500.0,0.00041095,2]
[313303007,1707127845735,-500.0,0.00041095,2]
[313303008,1707127845745,-500.0,0.00041095,2]
[313303009,1707127845754,-500.0,0.00041095,2]
[313303010,1707127845763,-500.0,0.00041095,2]
[313303011,1707127845772,-500.0,0.00041095,2]
[313303012,1707127845781,-500.0,0.00041095,2]
[313303013,1707127845790,-644.32950886,0.00041095,2]
[313303014,1707127845799,-246.77647002,0.00041095,2]
[313303015,1707127845808,-500.0,0.00041095,2]
[313303016,1707127845817,-494.5072489,0.00041095,2]
[313303017,1707127845827,-500.0,0.00041095,2]
[313303018,1707127845836,-500.0,0.00041095,2]
[313303019,1707127845845,-500.0,0.00041095,2]
[313303020,1707127845854,-781.78,0.00041095,2]
[313303021,1707127845863,-500.0,0.00041095,2]
[313303022,1707127845872,-500.0,0.00041095,2]
[313303023,1707127845881,-824.44,0.00041095,2]
[313303024,1707127845891,-516.4453625,0.00041095,2]
[313303025,1707127845900,-500.0,0.00041095,2]
[313303026,1707127845909,-399.32982937,0.00041095,2]
[313303027,1707127845918,-500.0,0.00041095,2]
[313303028,1707127845928,-500.0,0.00041095,2]
[313303029,1707127845937,-500.0,0.00041095,2]
[313303030,1707127845946,-312.53049852,0.00041095,2]
[313303031,1707127845955,-500.0,0.00041095,2]
[313303032,1707127845964,-500.0,0.00041095,2]
[313303033,1707127845974,-500.0,0.00041095,2]
[313303034,1707127845983,-3430.5,0.00041095,2]
[313303035,1707127845993,-500.0,0.00041095,2]
[313303036,1707127846003,-500.0,0.00041095,2]
[313303037,1707127846012,-500.0,0.00041095,2]
[313303038,1707127846022,-533.71847443,0.00041095,2]
[313303039,1707127846031,-500.0,0.00041095,2]
[313303040,1707127846040,-1266.59,0.00041095,2]
[313303041,1707127846049,-2414.76,0.00041095,5]
[313303042,1707127846059,-500.0,0.00041095,2]
[313303043,1707127846068,-304.93172891,0.00041095,2]
[313303044,1707127846078,-500.0,0.00041095,2]
[313303045,1707127846087,-500.0,0.00041095,2]
[313303046,1707127846096,-500.0,0.00041095,2]
[313303047,1707127846105,-585.33,0.00041095,2]
[313303048,1707127846115,-474.43437224,0.00041095,2]
[313303049,1707127846124,-1135.81,0.00041095,2]
[313303050,1707127846133,-500.0,0.00041095,2]
[313303051,1707127846142,-1049.13,0.00041095,2]
[313303052,1707127846152,-10927.31,0.00041095,2]
[313303053,1707127846161,-500.0,0.00041095,2]
[313303054,1707127846171,-500.0,0.00041095,2]
[313303055,1707127846184,-500.0,0.00041095,2]
[313303056,1707127846194,-500.0,0.00041095,2]
[313303057,1707127846203,-500.0,0.00041095,2]
[313303058,1707127846212,-151.0,0.00041096,14]
[313303059,1707127846222,-151.0,0.00041096,14]
[313303060,1707127846231,-151.0,0.00041096,14]
[313303061,1707127846240,-152.3,0.00041096,2]
[313303062,1707127846250,-168.766293,0.00041096,14]
[313303063,1707127846262,-500.0,0.00041232,7]
[313303064,1707127846272,-750.0,0.00041369,7]
[313303066,1707127846282,-168.8335665,0.00041386,30]
[313303068,1707127846291,-7237.5478,0.00041475,2]
[313303079,1707127846386,-2998.5513,0.00041475,2]
[313303081,1707127846396,-1000.0,0.00041506,7]
[313303083,1707127846405,-166.14041328,0.00041585,30]
[313303085,1707127846414,-721.70238864,0.00041643,7]
[313303087,1707127846423,-1433.34,0.00041798,42]
[313303089,1707127846432,-500.0,0.00041798,7]
[313303091,1707127846441,-187.66035892,0.00041798,34]
[313303093,1707127846450,-151.0,0.00041799,14]
[313303095,1707127846460,-500.0,0.00041799,7]
[313303096,1707127846469,-500.0,0.00041799,7]
[313303097,1707127846479,-624.02237879,0.00041799,7]
[313303098,1707127846488,-500.0,0.00041799,7]
[313303099,1707127846497,-534.34158102,0.00041799,7]
[313303100,1707127846506,-533.983118,0.00041799,7]
[313303101,1707127846515,-500.0,0.00041799,7]
[313303102,1707127846524,-500.0,0.00041799,7]
[313303103,1707127846533,-500.0,0.00041799,7]
[313303104,1707127846542,-526.70803065,0.00041799,7]
[313303105,1707127846551,-500.0,0.00041799,7]
[313303106,1707127846560,-500.0,0.00041799,7]
[313303107,1707127846569,-500.0,0.00041799,7]
[313303108,1707127846578,-500.0,0.00041799,7]
[313303109,1707127846587,-500.0,0.00041799,7]
[313303110,1707127846595,-500.0,0.00041799,7]
[313303111,1707127846604,-500.0,0.00041799,7]
[313303112,1707127846613,-500.0,0.00041799,7]
[313303113,1707127846622,-500.0,0.00041799,7]
[313303114,1707127846631,-500.0,0.00041799,7]
[313303115,1707127846640,-500.0,0.00041799,7]
[313303116,1707127846649,-1000.0,0.00041799,7]
[313303117,1707127846658,-922.19736365,0.00041799,7]
[313303118,1707127846667,-500.0,0.00041799,7]
[313303119,1707127846676,-500.0,0.00041799,7]
[313303120,1707127846686,-500.0,0.00041799,7]
[313303121,1707127846694,-500.0,0.00041799,7]
[313303122,1707127846703,-1000.0,0.00041799,7]
[313303123,1707127846712,-500.0,0.00041799,7]
[313303124,1707127846722,-500.0,0.00041799,7]
[313303125,1707127846730,-500.0,0.00041799,7]
[313303126,1707127846739,-500.0,0.00041799,7]
[313303127,1707127846749,-500.0,0.00041799,7]
[313303128,1707127846758,-500.0,0.00041799,7]
[313303129,1707127846767,-451.66512031,0.00041799,7]
[313303130,1707127846776,-500.0,0.00041799,7]
[313303131,1707127846786,-500.0,0.00041799,7]
[313303132,1707127846795,-500.0,0.00041799,7]
[313303133,1707127846804,-500.0,0.00041799,7]
[313303134,1707127846813,-500.0,0.00041799,7]
[313303135,1707127846822,-500.0,0.00041799,7]
[313303136,1707127846831,-500.0,0.00041799,7]
[313303137,1707127846840,-500.0,0.00041799,7]
[313303138,1707127846849,-500.0,0.00041799,7]
[313303139,1707127846859,-500.0,0.00041799,7]
[313303140,1707127846868,-500.0,0.00041799,7]
[313303141,1707127846877,-500.0,0.00041799,7]
[313303142,1707127846886,-500.0,0.00041799,7]
[313303143,1707127846895,-500.0,0.00041799,7]
[313303144,1707127846905,-500.0,0.00041799,7]
[313303145,1707127846914,-500.0,0.00041799,7]
[313303146,1707127846923,-552.2,0.00041799,7]
[313303147,1707127846932,-500.0,0.00041799,7]
[313303148,1707127846941,-500.0,0.00041799,7]
[313303149,1707127846950,-500.0,0.00041799,7]
[313303150,1707127846960,-500.0,0.00041799,7]
[313303151,1707127846969,-500.0,0.00041799,7]
[313303152,1707127846978,-500.0,0.00041799,7]
[313303153,1707127847001,-500.0,0.00041799,7]
[313303154,1707127847017,-303.98629272,0.00041799,7]
[313303155,1707127847037,-500.0,0.00041799,7]
[313303156,1707127847058,-500.0,0.00041799,7]
[313303157,1707127847075,-500.0,0.00041799,7]
[313303158,1707127847093,-2165.63247201,0.00041799,7]
[313303159,1707127847111,-500.0,0.00041799,7]
[313303160,1707127847130,-500.0,0.00041799,7]
[313303161,1707127847149,-500.0,0.00041799,7]
[313303162,1707127847166,-500.0,0.00041799,7]
[313303163,1707127847187,-3778.44098282,0.00041799,7]
[313303164,1707127847206,-500.0,0.00041799,7]
[313303165,1707127847219,-500.0,0.00041799,7]
[313303166,1707127847237,-500.0,0.00041799,7]
[313303167,1707127847253,-260.51870899,0.00041799,7]
[313303168,1707127847266,-500.0,0.00041799,7]
[313303169,1707127847280,-500.0,0.00041799,7]
[313303170,1707127847294,-500.0,0.00041799,7]
[313303171,1707127847308,-500.0,0.00041799,7]
[313303172,1707127847322,-500.0,0.00041799,7]
[313303173,1707127847335,-1127.36,0.00041799,7]
[313303174,1707127847349,-188.79377731,0.00041799,7]
[313303175,1707127847363,-500.0,0.00041799,7]
[313303176,1707127847377,-490.21933724,0.00041799,7]
[313303177,1707127847391,-500.0,0.00041799,7]
[313303178,1707127847405,-1539.46,0.00041799,7]
[313303179,1707127847420,-500.0,0.00041799,7]
[313303180,1707127847434,-500.0,0.00041799,7]
[313303181,1707127847448,-529.91504407,0.00041799,7]
[313303182,1707127847462,-500.0,0.00041799,7]
[313303183,1707127847476,-824.07,0.00041799,7]
[313303184,1707127847490,-500.0,0.00041799,7]
[313303185,1707127847505,-500.0,0.00041799,7]
[313303186,1707127847518,-1071.9,0.00041799,7]
[313303187,1707127847532,-500.0,0.00041799,7]
[313303188,1707127847546,-500.0,0.00041799,7]
[313303189,1707127847560,-500.44997272,0.00041799,7]
[313303190,1707127847573,-500.0,0.00041799,7]
[313303191,1707127847586,-1205.02,0.00041799,7]
[313303192,1707127847600,-500.0,0.00041827,2]
[313303193,1707127847614,-151.0,0.0004189,14]
[313303194,1707127847628,-697.4526,0.0004189,2]
[313303195,1707127847642,-130287.0,0.0004189,7]
[313303196,1707127847656,-2919.0,0.0004189,30]
[313303197,1707127847670,-1592.6,0.00041897,47]
[313303198,1707127847684,-500.0,0.00041897,7]
[313303199,1707127847729,-494.06886089,0.00041898,7]
[313303200,1707127847743,-764.00612933,0.00041898,2]
[313303201,1707127847758,-542.2639927,0.00041898,7]
[313303202,1707127847772,-500.0,0.00041898,7]
[313303203,1707127847786,-533.57425435,0.00041898,7]
[313303204,1707127847799,-517.75655204,0.00041898,7]
[313303205,1707127847813,-522.49119427,0.00041898,7]
[313303206,1707127847828,-548.51913579,0.00041898,7]
[313303207,1707127847842,-519.90239337,0.00041898,7]
[313303208,1707127847855,-544.2924467,0.00041898,7]
[313303209,1707127847869,-542.62288387,0.00041898,7]
[313303210,1707127847885,-506.38365667,0.00041898,7]
[313303211,1707127847899,-514.09793194,0.00041898,7]
[313303212,1707127847908,-540.31306186,0.00041898,7]
[313303213,1707127847917,-500.0,0.00041898,7]
[313303214,1707127847927,-598.25151456,0.00041898,7]
[313303215,1707127847936,-316.37081278,0.00041898,7]
[313303216,1707127847945,-621.31342264,0.00041898,7]
[313303217,1707127847955,-500.0,0.00041898,7]
[313303218,1707127848152,-500.0,0.00041898,7]
[313303219,1707127848171,-500.0,0.00041898,7]